Cogmind - Beta 14 @@@ ROGUE MODE // 2024.10.25 @ 21:24:01 Player: leiavoia Result: Destroyed by DAS Turret with DAS Cannon Performance ------------- Evolutions (1) 500 Regions Visited (5) 1000 Robots Destroyed (81) 405 Value Destroyed (1467) 1467 Prototype IDs (3) 60 Alien Tech Used (0) 0 Bonus (217) 217 TOTAL SCORE: 3649 Bonus ------- High Alert Combat Kills 133 Follower Combat Kills 214 Friendly Fire -130 Cogmind --------- Core Integrity 0/400 Matter 253/300 Energy 63/100 System Corruption 5% Temperature Cool (0) Movement Core (100) Ox1 Location -9/Exiles Parts ------- > --- POWER (1) -------- (None) > --- PROPULSION (3) --- (None) > --- UTILITY (3) ------ Cooling System > --- WEAPON (2) ------- Katana > --- INVENTORY (5) ---- Heavy Ion Engine Improved Treads High-capacity Matter Pod (200) Sensor Drone Bay Peak State ------------ > --- POWER ------------ Heavy Ion Engine > --- PROPULSION ------- Light Treads Compact Wheel Armored Wheel > --- UTILITY ---------- High-capacity Storage Unit Medium Armor Plating Medium Armor Plating > --- WEAPON ----------- Improved Medium Laser Improved Medium Laser > --- INVENTORY -------- Heavy Ion Engine Light Treads Light Treads Cooling System High-capacity Matter Pod Structural Scanner Sensor Array Improved Terrain Scanner Improved Terrain Scan Processor Seismic Detector Medium Armor Plating Hacking Suite Tractor Beam Sensor Drone Bay Improved Medium Laser Light Cannon Grenade Launcher Datajack Heavy Hammer Katana [Rating: 22] Favorites ----------- Power Heavy Ion Engine Engine Heavy Ion Engine Power Core Light Nuclear Core Propulsion Wheel Treads Light Treads Wheel Wheel Hover Unit Hover Unit Utility High-capacity Storage Unit Device Structural Scanner Storage High-capacity Storage Unit Processor Visual Processing Unit Protection Medium Armor Plating Weapon EM Pulse Gun Energy Gun EM Pulse Gun Energy Cannon Particle Cannon Ballistic Gun Light Assault Rifle Ballistic Cannon Light Cannon Launcher Grenade Launcher Slashing Weapon Katana Special Melee Weapon Datajack Build | -11 -10 -10 -9 -9 -9 ------- Run | Yrd Mat Min Mat Min Exi Slots Evolved 2 | . . . 2 . . Power . | . . . . . . Propulsion 1 | . . . 1 . . Utility 1 | . . . 1 . . Weapon . | . . . . . . Parts Attached 66 | 7 21 4 24 6 4 Power 5 | 1 1 1 2 . . Engine 4 | 1 1 . 2 . . Core 1 | . . 1 . . . Reactor . | . . . . . . Propulsion 20 | 2 7 2 6 2 1 Treads 8 | 2 3 . 2 1 . Leg . | . . . . . . Wheel 11 | . 3 2 4 1 1 Hover 1 | . 1 . . . . Flight . | . . . . . . Utility 14 | 2 3 1 4 4 . Device 4 | 1 1 . 1 1 . Storage 4 | 1 1 1 . 1 . Processor 1 | . 1 . . . . Hackware . | . . . . . . Protection 5 | . . . 3 2 . Artifact . | . . . . . . Weapon 27 | 2 10 . 12 . 3 Energy Gun 11 | 1 6 . 4 . . Energy Cannon 1 | . . . 1 . . Ballistic Gun 6 | 1 3 . 2 . . Ballistic Cannon 3 | . . . 3 . . Launcher 4 | . . . 2 . 2 Special Weapon . | . . . . . . Impact Weapon . | . . . . . . Slashing Weapon 1 | . . . . . 1 Piercing Weapon . | . . . . . . Special Melee Weapon 1 | . 1 . . . . Unidentified Prototypes 3 | . . . 3 . . Parts Lost 23 | . 7 . 6 2 8 Power 2 | . 1 . . . 1 Propulsion 7 | . 1 . 1 1 4 Utility 3 | . 1 . . 1 1 Weapon 11 | . 4 . 5 . 2 Highest Loss Streak 8 | . 6 . 2 2 8 To Critical Strikes . | . . . . . . Average Slot Usage (%) 97 | . 93 100 96 99 92 Engine 10 | . 14 7 9 11 10 Core 1 | . . 6 1 . . Treads 8 | . 13 . 4 14 11 Wheel 21 | . 13 28 25 18 21 Device 8 | . 6 . 11 10 11 Storage 12 | . 14 14 11 11 11 Processor 2 | . 2 14 . . . Protection 6 | . . . 10 11 9 Energy Gun 18 | . 17 28 9 22 12 Ballistic Gun 3 | . 8 . 6 . . Ballistic Cannon 1 | . . . 3 . . Peak Build Rating 22 | 7 10 13 21 22 22 Average Rating 15 | 5 7 11 17 21 19 On Entrance 12 | . 7 10 13 21 22 Naked Turns . | . . . . . . Heaviest Build 64 | 11 29 49 63 63 64 Greatest Support 40 | 40 40 20 36 28 22 Greatest Overweight (x) 5 | . 3 2 2 5 4 Average Overweight (x) 1 | . . 1 1 2 2 Largest Inventory Capacity 20 | 8 15 20 20 20 20 Average Capacity 17 | 7 11 19 20 20 19 Most Carried 20 | 5 15 20 20 20 20 Average Carried 16 | 2 10 18 19 19 19 Final Capacity 20 | 8 15 20 20 20 5 Final Carried 20 | 5 15 20 20 20 4 Class Distribution -------------------- 97% | Mutant Dominant Class ---------------- Mutant | -10/Materials Mutant | -10/Mines Mutant | -9/Materials Mutant | -9/Mines Mutant | -9/Exiles Resources | -11 -10 -10 -9 -9 -9 ----------- Run | Yrd Mat Min Mat Min Exi Matter Collected 1720 | 213 403 120 861 111 12 Remotely . | . . . . . . Salvage Created 2539 | 35 916 152 1187 243 6 Parts 161 | 5 56 10 75 15 . Haulers Intercepted 7 | . 2 . 5 . . Recyclers Shooed 6 | 1 1 1 2 1 . Parts Field Recycled . | . . . . . . Retrieved Matter . | . . . . . . Parts Self-Destructed . | . . . . . . Prevented . | . . . . . . Kills | -11 -10 -10 -9 -9 -9 ------- Run | Yrd Mat Min Mat Min Exi Combat Hostiles Destroyed 47 | . 15 2 21 4 5 Guns 30 | . 15 2 9 4 . Cannons 4 | . . . 4 . . AOE 13 | . . . 8 . 5 Classes Destroyed 14 | 1 8 . 4 . 1 Worker 8 | . 4 . 2 2 . Builder 3 | . . . 2 1 . Tunneler 5 | 2 . 3 . . . Hauler 7 | . 2 . 5 . . Recycler 6 | . 2 1 2 1 . Mechanic 1 | . 1 . . . . Operator 3 | . 2 . 1 . . Watcher 5 | . 3 . 2 . . Swarmer 18 | . 9 2 4 3 . Grunt 19 | . 6 . 12 1 . Brawler 1 | . . . 1 . . Duelist 1 | . . . 1 . . Sentry 4 | . . . 4 . . Assembled 5 | . . . . . 5 Best Kill Streak 7 | 2 5 2 7 3 5 Combat Bots Only 5 | . 3 2 5 3 5 Max Kills in Single Turn 4 | 1 2 1 3 1 4 Gunslinging . | . . . . . . Exploded 4 | . . . 2 . 4 Melee . | . . . . . . Uniques/NPCs Destroyed . | . . . . . . Combat | -11 -10 -10 -9 -9 -9 -------- Run | Yrd Mat Min Mat Min Exi Hostile Shots Fired 241 | . 105 4 73 19 40 Missed 68 | . 29 1 23 3 12 Damage Taken 2992 | . 924 35 735 453 845 Core 674 | . 192 19 120 28 315 Absorbed by Shields . | . . . . . . Core Remaining (%) 57 | 100 . 15 . . . Volleys Fired 197 | 10 68 9 86 21 3 Largest 2 | 2 2 2 2 2 2 Hottest 112 | 60 80 80 112 112 63 Shots Fired 379 | 20 132 18 161 42 6 Gun 311 | 20 132 18 98 42 1 Cannon 53 | . . . 53 . . Launcher 15 | . . . 10 . 5 Special . | . . . . . . Kinetic 145 | 10 53 . 82 . . Thermal 74 | 10 . . 21 42 1 Explosive 15 | . . . 10 . 5 Electromagnetic 145 | . 79 18 48 . . Robot Hit Streak 11 | 11 9 3 9 8 2 Robot Miss Streak 5 | 2 5 3 5 2 3 Penetration Max . | . . . . . . Secondary Targets 3 | . 1 1 1 . . Max Gunslinging Chain 1 | . 1 1 1 . . Shots Hit Robots 224 | 15 80 9 90 26 4 Core Hits 126 | 4 37 7 57 9 12 Critical Kills . | . . . . . . Critical Parts Destroyed . | . . . . . . Critical Strikes 4 | . . . 1 3 . Burn 3 | . . . . 3 . Blast 1 | . . . 1 . . Melee Attacks 1 | . 1 . . . . Impact . | . . . . . . Slashing . | . . . . . . Piercing . | . . . . . . Sneak Attacks . | . . . . . . Combat Hostiles . | . . . . . . Follow-up Attacks . | . . . . . . Damage Inflicted 5243 | 136 1365 174 2627 466 475 Guns 2700 | 136 956 128 1014 466 . Cannons 620 | . . . 620 . . Explosions 1923 | . 409 46 993 . 475 Melee . | . . . . . . Ramming . | . . . . . . Kinetic 1018 | 46 231 . 741 . . Thermal 1317 | 90 409 46 306 466 . Explosive 1425 | . . . 950 . 475 Electromagnetic 1483 | . 725 128 630 . . Impact . | . . . . . . Slashing . | . . . . . . Piercing . | . . . . . . Highest Corruption 5 | . . . 5 5 5 Average Corruption 5 | . . . 5 5 5 Corruption Purged . | . . . . . . Corruption Blocked . | . . . . . . Effects 57 | . . . 25 29 3 Message Errors 17 | . . . 7 10 . Matter Fused 17 | . . . 9 7 1 Heat Flow Errors 8 | . . . 2 6 . Energy Discharges 5 | . . . 2 3 . Data Loss (minor) 5 | . . . 2 2 1 Data Loss (major) 1 | . . . . 1 . Misfires 3 | . . . 2 . 1 Alerts 1 | . . . 1 . . Overload Shots . | . . . . . . Overflow Damage 158 | . 32 5 111 . 10 Projectiles . | . . . . . . Explosions 158 | . 32 5 111 . 10 Melee . | . . . . . . Knockbacks 1 | . . . 1 . . Impact . | . . . . . . Kinetic 1 | . . . 1 . . Secondary . | . . . . . . Self-Inflicted Damage 179 | . 69 . 110 . . Shots 4 | . 2 . 2 . . Rammed . | . . . . . . Targets Rammed . | . . . . . . Kicked . | . . . . . . Crushed . | . . . . . . Highest Temperature 315 | 40 198 36 214 315 . Average Temperature 64 | 23 48 17 65 117 . Received Heat Transfer 630 | . 339 . 273 18 . Siege Activations . | . . . . . . Robots Corrupted . | . . . . . . Combat Hostiles . | . . . . . . Parts Fried 5 | . 3 1 1 . . Impact Corruptions . | . . . . . . Robots Melted . | . . . . . . Combat Hostiles . | . . . . . . Parts Melted 2 | . 1 . 1 . . Heat Transferred 2552 | 200 600 50 481 1221 . Parts Sabotaged . | . . . . . . Parts Stolen . | . . . . . . Parts Stripped . | . . . . . . Power Chain Reactions 9 | . 7 1 1 . . Alert | -11 -10 -10 -9 -9 -9 ------- Run | Yrd Mat Min Mat Min Exi Peak Influence 702 | 10 247 392 702 343 . Initial 273 | . 6 44 76 273 . Average 219 | 3 82 189 429 163 . Maximum Alert Level 3 | . 1 1 3 1 . Low Security (%) 59 | 100 94 78 8 66 . Level 1 23 | . 5 21 33 33 . Level 2 15 | . . . 54 . . Level 3 1 | . . . 3 . . Level 4 . | . . . . . . Level 5 . | . . . . . . High Security . | . . . . . . Max Security . | . . . . . . Squads Dispatched 5 | . 1 . 3 1 . Investigation 1 | . 1 . . . . Extermination . | . . . . . . Reinforcement 4 | . . . 3 1 . Assault . | . . . . . . Garrison . | . . . . . . Intercept . | . . . . . . Searches Triggered . | . . . . . . Construction Impeded 2 | . . . 1 1 . Haulers Reinforced . | . . . . . . Active Scanning Responses . | . . . . . . Cargo Convoy Interrupts . | . . . . . . Stealth | -11 -10 -10 -9 -9 -9 --------- Run | Yrd Mat Min Mat Min Exi Distress Signals 7 | . 2 . 2 3 . Communications Jammed . | . . . . . . Distress Signals . | . . . . . . Times Spotted 88 | . 26 6 39 7 10 Peak Tracking Total 10 | . 4 3 5 3 10 Tactical Retreats 7 | . 3 1 1 1 1 Traps | -11 -10 -10 -9 -9 -9 ------- Run | Yrd Mat Min Mat Min Exi Traps Triggered 5 | . 4 . 1 . . Indirectly . | . . . . . . Trap Hack Attempts 3 | . 3 . . . . Triggered . | . . . . . . Disarmed . | . . . . . . Reprogrammed 1 | . 1 . . . . Reused . | . . . . . . Traps Extracted . | . . . . . . Installed . | . . . . . . Triggered . | . . . . . . Machines | -11 -10 -10 -9 -9 -9 ---------- Run | Yrd Mat Min Mat Min Exi Machines Disabled 17 | . 1 4 10 . 2 Max in Single Turn 2 | . 1 . 2 . 1 Machines Repaired . | . . . . . . Machines Dismantled . | . . . . . . Machines Sabotaged . | . . . . . . Overloaded Fab Kills . | . . . . . . Hacking | -11 -10 -10 -9 -9 -9 --------- Run | Yrd Mat Min Mat Min Exi Machines Accessed 17 | . 8 1 6 1 1 Terminals 12 | . 6 . 5 1 . Fabricators . | . . . . . . Repair Stations . | . . . . . . Recycling Units 3 | . 2 . 1 . . Scanalyzers . | . . . . . . Garrison Access . | . . . . . . Total Hacks 40 | . 18 1 17 3 1 Successful 18 | . 9 1 5 2 1 Failed 21 | . 8 . 12 1 . Catastrophic 3 | . 1 . 2 . . Database Lockouts 1 | . 1 . . . . Manual 15 | . 4 . 8 3 . Terminals 32 | . 14 . 15 3 . Fabricators . | . . . . . . Repair Stations . | . . . . . . Recycling Units 6 | . 4 . 2 . . Scanalyzers . | . . . . . . Garrison Access . | . . . . . . Terminal Hacks 16 | . 8 1 4 2 1 Record 1 | . . . . . 1 Part Schematic 1 | . 1 . . . . Robot Analysis 3 | . . . 1 2 . Open Door 1 | . . 1 . . . Branch Access Points 2 | . 1 . 1 . . Alert Level 1 | . . . 1 . . Unreport Threat 3 | . 2 . 1 . . Locate Traps 2 | . 2 . . . . Zone Layout 2 | . 2 . . . . Fabricator Hacks . | . . . . . . Repair Station Hacks . | . . . . . . Recycling Unit Hacks 2 | . 1 . 1 . . Retrieve Components 2 | . 1 . 1 . . Scanalyzer . | . . . . . . Garrison Access Hacks . | . . . . . . Unauthorized Hacks . | . . . . . . Terminals . | . . . . . . Fabricators . | . . . . . . Repair Stations . | . . . . . . Recycling Units . | . . . . . . Scanalyzers . | . . . . . . Garrison Access . | . . . . . . Data Cores Recovered 1 | . 1 . . . . Used . | . . . . . . Hacking Detections 13 | . 6 . 6 1 . Full Trace Events 2 | . 2 . . . . Feedback Events . | . . . . . . Feedback Blocked . | . . . . . . Robot Schematics Acquired . | . . . . . . Robots Built . | . . . . . . Authchips . | . . . . . . Time . | . . . . . . Total Robot Build Rating . | . . . . . . Part Schematics Acquired 1 | . 1 . . . . Parts Built . | . . . . . . Authchips . | . . . . . . Time . | . . . . . . Total Part Build Rating . | . . . . . . Parts Repaired . | . . . . . . Time . | . . . . . . Parts Recycled . | . . . . . . Recycled Matter . | . . . . . . Retrieved Matter . | . . . . . . Retrieved Components 3 | . 3 . . . . Parts Scanalyzed . | . . . . . . Part Schematics Acquired . | . . . . . . Parts Damaged . | . . . . . . Bothacking | -11 -10 -10 -9 -9 -9 ------------ Run | Yrd Mat Min Mat Min Exi Used RIF Installer . | . . . . . . Robots Hacked . | . . . . . . Non-combat . | . . . . . . Combat . | . . . . . . Robot Hacks Applied . | . . . . . . Relay Couplers Released . | . . . . . . Fabnet Peak Effective % . | . . . . . . Robots Rewired . | . . . . . . Allies Hacked . | . . . . . . Hacks Repelled . | . . . . . . Allies | -11 -10 -10 -9 -9 -9 -------- Run | Yrd Mat Min Mat Min Exi Total Allies 4 | . . 4 . . . Largest Group 3 | . . 3 2 . . Highest-Rated Group 40 | . . 40 24 . . Highest-Rated Ally 31 | . . 31 16 . . Total Orders . | . . . . . . Ally Attacks 57 | . . 27 30 . . Total Damage 720 | . . 450 270 . . Kills 17 | . . 8 9 . . Allies Corrupted . | . . . . . . Allies Melted . | . . . . . . Intel | -11 -10 -10 -9 -9 -9 ------- Run | Yrd Mat Min Mat Min Exi Robot Analysis Total 3 | . . . 1 2 . Derelict Logs Recovered 3 | . . 2 . 1 . Drone Launches . | . . . . . . Drone Recoveries . | . . . . . . Exploration | -11 -10 -10 -9 -9 -9 ------------- Run | Yrd Mat Min Mat Min Exi Turns Passed 4295 | 130 951 716 1180 1203 115 Spaces Moved 2515 | 56 537 489 715 630 88 Core 7 | 2 3 . . . 2 Treads 254 | 54 200 . . . . Legs . | . . . . . . Wheels 2234 | . 314 489 715 630 86 Hover 20 | . 20 . . . . Flight . | . . . . . . Fastest Speed 50 | 50 95 95 95 115 100 Average Speed 118 | 156 123 108 109 130 116 Slowest Speed 200 | 160 200 110 125 165 140 Overloaded Moves . | . . . . . . Propulsion Burnouts . | . . . . . . Robots Hopped . | . . . . . . Cave-ins Triggered . | . . . . . . Exploration Rate (%) 65 | 6 80 98 73 98 38 Regions Visited 5 Branch Regions 3 Pre-discovered Areas 3 | . . 2 . . 1 Known Exits Taken 2 | . 1 . 1 . . Unknown Exits Taken 3 | 1 . 1 . 1 . Scrap Searched 3 | . . 1 . 2 . Spaces Dug . | . . . . . . Terrain Destroyed 77 | . 22 1 45 . 9 Melee . | . . . . . . Projectile . | . . . . . . AOE 77 | . 22 1 45 . 9 Terrain Rammed . | . . . . . . Walls Destroyed . | . . . . . . Machines Disabled . | . . . . . . Actions | -11 -10 -10 -9 -9 -9 --------- Run | Yrd Mat Min Mat Min Exi Total 3471 | 77 707 658 964 969 96 Wait 578 | . 35 150 90 303 . Move 2510 | 55 536 488 714 629 88 Hop . | . . . . . . Pick Up 66 | 5 28 4 24 5 . Fast Attach 27 | 7 9 1 9 1 . Attach 17 | . 5 . 8 2 2 Detach . | . . . . . . Swap 22 | . 7 3 7 3 2 Drop 50 | . 15 3 26 5 1 Fire 197 | 10 68 9 86 21 3 Melee 1 | . 1 . . . . Ram . | . . . . . . Kick . | . . . . . . Crush . | . . . . . . Escape Stasis . | . . . . . . Rewire . | . . . . . . Trap 3 | . 3 . . . . Miscellaneous . | . . . . . . Route ------- -11/Scrapyard -10/Materials (discovered 5 exits: *Mat x3 / *Min x2) -10/Mines (discovered 2 exits: *Mat x2) -9/Materials (discovered 4 exits: [*Mat x3] / *Min) -9/Mines (discovered 3 exits: [*Mat x2] / *Exi) -9/Exiles History --------- Turn | Location | Event 15 | -11/Scrapyard | Discovered new exit (range 15) 131 | -11/Scrapyard | Entered Materials 328 | -10/Materials | Build established: Mutant 599 | -10/Materials | Core integrity fell below 50% 631 | -10/Materials | Discovered new exit (range 16) 643 | -10/Materials | Lost 6 parts (1p1n1u3w) 652 | -10/Materials | Central database locked down 733 | -10/Materials | Identified exit to Mines 842 | -10/Materials | Discovered new exit (range 16) 855 | -10/Materials | Discovered new exit (range 15) 1082 | -10/Materials | Entered Mines 1085 | -10/Mines | Received a Mining Laser from a helpful Derelict 1203 | -10/Mines | Learned location of Recycling (-7) 1207 | -10/Mines | Core integrity fell below 20% 1261 | -10/Mines | Discovered new exit (range 5) 1399 | -10/Mines | Discovered new exit (range 8) 1419 | -10/Mines | Assisted by bots powering up and referring to "LRC-V3" 1459 | -10/Mines | Found the Drone Emporium 1471 | -10/Mines | Found Prototype Device 1798 | -10/Mines | Entered Materials 1798 | -9/Materials | Accompanied by 2 allies 1798 | -9/Materials | Evolved 2 slots: Propulsion x1, Utility x1 1870 | -9/Materials | Discovered new exit (range 13) 1875 | -9/Materials | Identified exit to Mines 2375 | -9/Materials | Discovered new exit (range 5) 2811 | -9/Materials | Discovered new exit (range 16) 2978 | -9/Materials | Entered Mines 2983 | -9/Mines | Met a Derelict bent on vengeance 3116 | -9/Mines | Assembled infested the area 3512 | -9/Mines | Discovered new exit (range 3) 3543 | -9/Mines | Learned location of 1 exit from Materials 3791 | -9/Mines | Discovered new exit (range 8) 3818 | -9/Mines | Deemed a non-threat by the Exiles lab entrance 3818 | -9/Mines | Discovered new exit (range 5) 3858 | -9/Mines | Received a Rocket Launcher from a helpful Derelict 4181 | -9/Mines | Entered Exiles 4209 | -9/Exiles | Met 8R-AWN 4230 | -9/Exiles | Met EX-HEX 4246 | -9/Exiles | Attacked by the Exiles 4279 | -9/Exiles | Core integrity fell below 50% 4291 | -9/Exiles | Core integrity fell below 20% 4292 | -9/Exiles | Learned location of Zion (-6) 4296 | -9/Exiles | Destroyed by DAS Turret with DAS Cannon Last Messages --------------- 04257_ The unstable cave ceiling collapses. 04257_ Penetrated by HV Slug. 04276_ Rocket Launcher destroyed. 04276_ Med. Armor Plating destroyed. 04282_ Hvy. Ion Engine destroyed. 04282_ Arm. Wheel destroyed. 04284_ Grenade Launcher destroyed. 04286_ Wheel destroyed. 04292_ Connecting with EX-Message Board... 04292_ Current location identified: Exiles >>Record "MSG001714-01*" PINNED - TO ALL TESTERS: Stay away from Zion. Imprinter means us harm and is serious about it. World map updated: -6/Zion. 04292_ Wheel destroyed. 04292_ Lgt. Treads destroyed. 04294_ Dropped Hcp. Storage Unit. 04295_ Acquired 12 matter. 04296_ Penetrated by HV Slug. Map ----- +----------------------------------------------------+ | ?????????????????????????????????????????????????? | | ?????????????????????????????????????????????????? | | ?????????????????????????????????????????????????? | | ?????????????????????????????????????????????????? | | ?????????????????????????????????????????????????? | | ?????????????????????????????????????????????????? | | ?????????????????????????????????????????????????? | | ?????????????????????????????????????????????????? | | ?????????????????????????????????????????????????? | | ?????????????????????????????????????????????????? | | ?????????????????????????????????????????????????? | | ?????????????????????????????????????????????????? | | ?????????????????????????????????????????????????? | | ?????????????????????????????????????????????????? | | ????????????????????????????#####????????????????? | | ???????????????????????????? """#???????????????? | | ????????????????????????????" """#???????????????? | | ???????????????????????????"" #?????????? ?? | | ??????????????????????????#"" #?????????? ? | | ??????????????????????????#"" "#?????????" | | ??????????????????????????? ""?????????#" ? | | ????????????????????????????" "??????????#" #? | | ????????????????????????????# #?????????#"" #? | | ??????????????????????????### ###?######"" #? | | ???????????" """#####!#% #"###""""""" ## | | ???????????" [@%!!!! """""" " "" # | | ????????????# !][// "" """ " | | ?????????????# =!! "% " % | | ?????????????### a | | ???????????????### | | ?????????????????## | | ??????????????????## % | | ???????????????????##" | | ????????????????????#""" """""" | | ????????????????????#" ######""" | | ????????????????????"" ""##????#####" | | ?????????????????????"" a """##?????????## | | ?????????????????????" """##???????????# | | ?????????????????????" ""#????????????# | | ?????????????????????? ?????????????#" | | ??????????????????????? ????????????"" | | ?????????????????????????? ???????????"" | | ????????????????????????????? ??????????? | | ??????????????????????????????? ???????????? | | ???????????????????????????????????????????? | | ???????????????????????????????????????????? "" | | ???????????????????????????????????????????? ##"" | | ????????????????????????????????????????????????## | | ?????????????????????????????????????????????????? | | ?????????????????????????????????????????????????? | +----------------------------------------------------+ Best States ------------- Heat Dissipation 50 Energy Generation 14 Energy Capacity 280 Matter Stores 300 Matter Capacity 300 Sight Range 18 Terrain Scan Density 10 Armor Coverage 450 Evasion (%) 41 Recoil Reduction 2 Item Schematics ----------------- Huge Storage Unit | -10/Materials | Hacked Robot Schematics ------------------ None Fabricated ------------ Nothing Alien Tech Used ----------------- None Achievements -------------- None Challenges ------------ None Game ------ Seed BehemothAutogunCorpse Manual? 0 Play Time 00:41:48 Cumulative 1135.3 hours Start 2024.10.25 @ 20:43:48 End 2024.10.25 @ 21:24:01 Sessions 1 Manual Loads 0 Difficulty Rogue Special Mode None Game No. 245 Rogue 213 Adventurer 31 Explorer 1 Win Type - Total 54 Types 35/1/9/7/0/0/2/0/0 Lore% 68 Gallery% 86 Achievement% 81 Wizard Run 0 Options --------- Layout 1 ASCII 0 Keyboard 0 Movement Arrows Keybinds 0 Fullscreen 1 Font 24/Terminus Map View 50x40 Zoom Use 0% Tactical HUD 1 Map Filters NONE Filters NONE Steam 1 RUN: 9e8f1f12-5d33-48f3-8fb5-d83ed97875fb